bitfinex-derivatives/quotes_BNBF0:USTF0_20250710
["timestamp","ask_amount","ask_price","bid_price","bid_amount"]
[1752123706003,2.2258802,672.54,672.06,1.673]
[1752123706705,2.2258802,672.55,672.06,1.673]
[1752123708109,2.2258802,672.58,672.06,1.673]
[1752123709409,2.2258802,672.59,672.06,1.673]
[1752123710812,2.2258802,672.58,672.06,1.673]
[1752123716410,2.2258802,672.61,672.06,1.673]
[1752123718113,2.2258802,672.63,672.06,1.673]
[1752123718717,2.2258802,672.64,672.06,1.673]
[1752123723622,2.2258802,672.71,672.06,1.673]
[1752123723922,2.2258802,672.73,672.06,1.673]
[1752123726220,2.2258802,672.72,672.06,1.673]
[1752123728424,2.2258802,672.84,672.06,1.673]
[1752123728623,0.25878801,672.86,672.06,1.673]
[1752123731934,0.25878801,672.86,671.95,0.25876299]
[1752123735231,0.25878801,672.86,671.96,1.977]
[1752123738237,2.2258802,672.83,671.96,1.977]
[1752123738837,2.2258802,672.82,671.96,1.977]
[1752123740744,2.2258802,672.85,671.96,1.977]
[1752123742142,0.25878801,672.86,671.96,1.977]
[1752123743444,2.48466821,672.86,671.96,1.977]
[1752123744942,2.2258802,672.83,671.96,1.977]
[1752123745347,2.2258802,672.8,671.96,3.6365171]
[1752123745542,2.2258802,672.81,671.96,3.6365171]
[1752123745845,2.2258802,672.8,671.96,3.6365171]
[1752123746546,2.2258802,672.81,671.96,3.6365171]
[1752123747345,2.2258802,672.83,671.96,1.977]
[1752123747649,0.25878801,672.86,671.97,1.6595171]
[1752123750450,0.25878801,672.86,671.96,1.6595171]
[1752123750648,2.48466821,672.86,671.98,1.6595171]
[1752123751551,0.25878801,672.86,671.98,1.6595171]
[1752123752052,2.2258802,672.85,671.99,1.6595171]
[1752123752452,2.2258802,672.85,671.95,0.25876299]
[1752123752453,2.2258802,672.85,671.98,1.6595171]
[1752123752752,2.2258802,672.84,671.99,1.6595171]
[1752123753350,2.2258802,672.84,672.0,1.709]
[1752123753550,2.2258802,672.85,672.0,1.709]
[1752123754254,2.2258802,672.84,672.0,1.709]
[1752123754452,2.2258802,672.85,672.0,1.709]
[1752123754850,0.25878801,672.86,672.0,1.709]
[1752123754851,2.2258802,672.84,672.0,1.709]
[1752123755854,2.2258802,672.84,672.0,3.3685171]
[1752123756349,2.2258802,672.84,672.0,1.709]
[1752123756750,2.2258802,672.84,672.0,3.3685171]
[1752123757155,2.2258802,672.79,672.03,1.6595171]
[1752123758453,2.2258802,672.79,672.0,1.709]
[1752123758454,2.2258802,672.78,672.04,1.6595171]
[1752123759752,2.2258802,672.76,672.06,1.6595171]
[1752123759956,2.2258802,672.75,672.05,1.6595171]
[1752123760157,2.2258802,672.76,672.06,1.6595171]
[1752123761458,2.2258802,672.76,672.05,1.6595171]
[1752123761953,2.2258802,672.75,672.06,1.6595171]
[1752123764553,2.2258802,672.75,672.05,1.6595171]
[1752123766055,2.2258802,672.75,672.0,1.709]
[1752123766056,2.2258802,672.74,672.06,1.6595171]
[1752123767160,2.2258802,672.72,672.07,1.6595171]
[1752123767359,2.2258802,672.78,672.03,1.6595171]
[1752123768355,2.2258802,672.77,672.03,1.6595171]
[1752123768559,2.2258802,672.77,672.04,1.6595171]
[1752123770356,2.2258802,672.76,672.04,1.6595171]
[1752123770762,2.2258802,672.82,672.0,1.709]
[1752123771360,0.25878801,672.86,672.0,1.709]
[1752123771361,2.2258802,672.72,672.0,1.709]
[1752123772062,2.2258802,672.73,672.0,1.709]
[1752123772358,2.2258802,672.72,672.0,1.709]
[1752123772558,2.2258802,672.7,672.0,1.709]
[1752123780866,2.2258802,672.61,672.0,1.709]
[1752123781470,2.2258802,672.64,671.96,1.65987855]
[1752123781671,2.2258802,672.64,671.97,1.65987855]
[1752123782071,2.2258802,672.66,671.95,1.91864154]
[1752123784274,2.2258802,672.67,671.95,1.91864154]
[1752123785172,2.2258802,672.67,671.96,1.268]
[1752123789678,2.2258802,672.68,671.96,1.268]
[1752123789875,2.2258802,672.67,671.96,1.268]
[1752123790175,2.2258802,672.68,671.96,1.268]
[1752123790375,2.2258802,672.69,671.96,1.268]
[1752123790976,2.2258802,672.71,671.96,1.268]
[1752123791375,2.2258802,672.69,671.96,1.268]
[1752123793582,2.2258802,672.68,671.96,1.268]
[1752123794380,2.2258802,672.67,671.96,1.268]
[1752123795078,2.2258802,672.68,671.96,1.268]
[1752123797085,2.2258802,672.67,671.96,1.268]
[1752123797581,2.2258802,672.68,671.96,1.268]
[1752123800187,2.2258802,672.67,671.96,1.268]
[1752123801087,2.2258802,672.63,671.97,1.65987855]
[1752123801286,3.349552,672.76,671.96,2.92787855]
[1752123801287,2.2258802,672.64,671.96,2.92787855]
[1752123802287,2.2258802,672.67,671.96,1.268]
[1752123803086,2.2258802,672.66,671.96,1.268]
[1752123803285,2.2258802,672.68,671.96,1.268]
[1752123805294,2.2258802,672.7,671.96,1.268]
[1752123806692,2.2258802,672.69,671.96,1.268]
[1752123810799,2.2258802,672.68,671.96,1.268]
[1752123811400,2.2258802,672.65,671.96,2.92787855]
[1752123814100,2.2258802,672.65,671.97,1.65987855]
[1752123814300,2.2258802,672.65,671.96,2.92787855]
[1752123814501,2.2258802,672.65,671.97,1.65987855]
[1752123815102,2.2258802,672.62,671.98,1.65987855]
[1752123815398,2.2258802,672.62,671.99,1.65987855]
[1752123815601,2.2258802,672.61,671.99,1.65987855]
[1752123815801,2.2258802,672.62,671.98,1.65987855]
[1752123816197,2.2258802,672.63,671.98,1.65987855]
[1752123816401,2.2258802,672.62,671.98,1.65987855]
[1752123817300,2.2258802,672.63,671.98,1.65987855]
[1752123817499,2.2258802,672.62,671.98,1.65987855]
[1752123817698,2.2258802,672.63,671.98,1.65987855]
[1752123818199,2.2258802,672.62,671.98,1.65987855]
[1752123818401,2.2258802,672.62,671.99,1.65987855]
[1752123819300,2.2258802,672.61,671.99,1.65987855]
[1752123819599,2.2258802,672.61,672.0,1.541]
[1752123820098,2.2258802,672.64,672.0,1.541]
[1752123820699,2.2258802,672.71,672.0,1.541]
[1752123820904,2.2258802,672.69,672.0,1.541]
[1752123821702,2.2258802,672.7,672.0,1.541]
[1752123822505,2.2258802,672.69,672.0,1.541]
[1752123825605,2.2258802,672.68,672.0,1.541]
[1752123826307,2.2258802,672.69,672.0,1.541]
[1752123826504,2.2258802,672.68,672.0,1.541]
[1752123827510,2.2258802,672.67,672.0,1.541]
[1752123829010,2.2258802,672.59,672.0,1.541]
[1752123830007,2.2258802,672.6,672.0,1.541]
[1752123830310,2.2258802,672.58,672.0,1.541]
[1752123830605,2.2258802,672.57,672.0,1.541]
[1752123832415,2.2258802,672.59,672.0,1.541]
[1752123832614,2.2258802,672.58,672.0,1.541]
[1752123835916,2.2258802,672.59,672.0,1.541]
[1752123838219,2.2258802,672.6,672.0,1.541]
[1752123838518,2.2258802,672.61,672.0,1.541]
[1752123839018,2.2258802,672.6,672.0,1.541]
[1752123839214,2.2258802,672.61,672.0,1.541]
[1752123839816,2.2258802,672.6,672.0,1.541]
[1752123842223,2.2258802,672.59,672.0,1.541]
[1752123842723,2.2258802,672.59,671.97,1.66306238]
[1752123843023,2.2258802,672.6,671.97,1.66306238]
[1752123845026,2.2258802,672.6,671.96,1.66306238]
[1752123845325,2.2258802,672.6,671.98,1.468]
[1752123846627,2.2258802,672.61,671.98,1.468]
[1752123847627,2.2258802,672.62,671.98,1.468]
[1752123848025,2.2258802,672.61,671.98,1.468]
[1752123849128,2.2258802,672.62,671.98,1.468]
[1752123849528,2.2258802,672.63,671.98,1.468]
[1752123854031,2.2258802,672.64,671.98,1.468]
[1752123855534,2.2258802,672.63,671.98,1.468]
[1752123857436,2.2258802,672.62,671.98,1.468]
[1752123858132,2.2258802,672.61,671.98,1.468]
[1752123859437,2.2258802,672.6,671.98,1.468]
[1752123860736,2.2258802,672.59,671.98,1.468]
[1752123862342,2.2258802,672.58,671.98,3.13106238]
[1752123863741,2.2258802,672.56,671.99,1.66306238]
[1752123864140,2.2258802,672.55,672.0,1.66306238]
[1752123864339,2.2258802,672.56,672.0,1.66306238]
[1752123864540,2.2258802,672.58,671.98,3.13106238]
[1752123865340,2.2258802,672.57,671.98,3.13106238]
[1752123865540,2.2258802,672.57,671.99,1.66306238]
[1752123869043,2.2258802,672.56,671.99,1.66306238]
[1752123869942,2.2258802,672.58,671.98,3.13106238]
[1752123870542,2.2258802,672.57,671.98,1.468]
[1752123873239,2.2258802,672.57,671.97,1.66306238]
[1752123874142,2.2258802,672.56,671.98,1.66306238]
[1752123875840,2.2258802,672.56,671.99,1.398]
[1752123876741,2.2258802,672.55,671.99,3.06106238]
[1752123877146,2.2258802,672.55,671.99,1.398]
[1752123877446,2.2258802,672.56,671.99,1.398]
[1752123877943,2.2258802,672.55,671.99,1.398]
[1752123878948,2.2258802,672.55,671.99,3.06106238]
[1752123880650,2.2258802,672.54,671.99,3.06106238]
[1752123882654,2.2258802,672.53,672.0,1.66306238]
[1752123883053,2.2258802,672.55,671.99,3.06106238]
[1752123884354,2.2258802,672.54,671.99,3.06106238]
[1752123884755,2.2258802,672.54,672.0,1.66306238]
[1752123886451,2.2258802,672.53,672.0,1.66373382]
[1752123886952,2.2258802,672.54,671.99,3.06173382]
[1752123888355,2.2258802,672.6,671.99,1.398]
[1752123888855,2.2258802,672.61,671.99,1.398]
[1752123892165,3.349552,672.78,671.99,1.398]
[1752123892659,0.25878127,672.8,671.99,1.398]
[1752123893065,2.2296231,672.61,671.99,1.398]
[1752123895264,3.3444346,672.77,671.99,1.398]
[1752123896469,0.25878127,672.8,671.99,1.398]
[1752123899175,2.2296191,672.54,672.0,1.6634405]
[1752123901178,2.2296191,672.53,672.0,1.6634405]
[1752123905283,2.2296191,672.53,672.01,1.6634405]
[1752123905581,2.2296191,672.5,672.03,1.6634405]
[1752123906282,2.2296191,672.53,672.0,1.6634405]
[1752123906681,2.2296191,672.53,672.01,1.6634405]
[1752123907379,2.2296191,672.53,672.0,1.6634405]
[1752123908181,2.2296191,672.55,671.99,3.0614405]
[1752123912984,2.2296191,672.62,671.99,1.398]
[1752123922889,2.2296191,672.56,671.99,3.0614405]
[1752123923985,2.2296191,672.56,671.99,1.6634405]
[1752123924187,2.2296191,672.55,671.99,1.6634405]
[1752123925291,2.2296191,672.54,672.0,1.6634405]
[1752123925489,2.2296191,672.53,671.99,1.6634405]
[1752123928095,2.2296191,672.53,672.0,1.368]
[1752123928292,2.2296191,672.52,672.0,1.368]
[1752123928496,2.2296191,672.52,672.0,3.0314405]
[1752123928694,2.2296191,672.72,672.0,1.368]
[1752123929196,2.2296191,672.71,672.0,1.368]
[1752123938496,2.2296191,672.57,672.0,1.368]
[1752123940898,2.2296191,672.61,672.0,1.368]
[1752123941702,2.2296191,672.63,672.0,1.368]
[1752123943204,2.2296191,672.57,672.0,1.368]
[1752123950813,2.2296191,672.55,672.0,1.368]
[1752123951520,2.2296191,672.5,672.02,1.6633102]
[1752123952817,2.2296191,672.5,672.01,1.6633102]
[1752123953218,2.2296191,672.49,672.02,1.6633102]
[1752123954118,2.2296191,672.52,672.0,1.368]
[1752123957023,2.2296191,672.54,672.0,1.368]
[1752123963820,2.2296191,672.53,672.0,1.368]
[1752123964122,2.2296191,672.52,672.0,1.368]
[1752123965122,2.2296191,672.53,672.0,1.368]
[1752123966626,2.2296191,672.52,672.0,3.0313102]
[1752123966830,2.2296191,672.49,672.02,1.6633102]
[1752123970029,2.2296191,672.5,672.02,1.6633102]
[1752123970328,2.2296191,672.5,672.01,1.6633102]
[1752123971329,2.2296191,672.57,672.0,1.368]
[1752123972935,2.2296191,672.57,671.96,1.6633102]
[1752123973934,2.2296191,672.57,671.95,1.92207319]
[1752123974134,2.2296191,672.57,671.96,1.6633102]
[1752123976434,2.2296191,672.57,671.97,1.868]
[1752123979531,2.2296191,672.58,671.97,1.868]
[1752123979736,2.2296191,672.57,671.97,1.868]
[1752123981133,2.2296191,672.53,671.99,1.6633102]
[1752123983436,2.2296191,672.54,671.98,1.6633102]
[1752123983636,2.2296191,672.53,671.99,1.6633102]
[1752123984238,2.2296191,672.52,671.99,1.6633102]
[1752123984538,2.2296191,672.55,671.97,3.5313102]
[1752123985733,2.2296191,672.54,671.97,1.868]
[1752123985935,2.2296191,672.55,671.97,1.868]
[1752123987338,2.2296191,672.52,671.97,1.868]
[1752123987939,2.2296191,672.53,671.97,1.868]
[1752123988434,2.2296191,672.55,671.97,1.868]
[1752123989437,2.2296191,672.53,671.97,1.868]
[1752123991240,2.2296191,672.54,671.97,1.868]
[1752123991534,2.2296191,672.53,671.97,1.868]
[1752123992238,2.2296191,672.54,671.97,1.868]
[1752123992637,2.2296191,672.52,671.97,1.868]
[1752123993440,2.2296191,672.53,671.97,1.868]
[1752123995042,2.2296191,672.54,671.97,1.868]
[1752123995342,2.2296191,672.55,671.97,1.868]
[1752123998145,2.2296191,672.52,671.97,1.868]
[1752123998945,2.2296191,672.54,671.97,1.868]
[1752123999844,2.2296191,672.55,671.97,1.868]
[1752124001340,2.2296191,672.54,671.97,1.868]
[1752124002345,2.2296191,672.55,671.97,1.868]
[1752124004747,2.2296191,672.54,671.97,1.868]
[1752124005042,2.2296191,672.53,671.97,1.868]
[1752124007650,2.2296191,672.55,671.97,1.868]
[1752124008850,2.2296191,672.53,671.97,1.868]
[1752124011851,2.2296191,672.52,671.97,1.868]
[1752124012252,2.2296191,672.53,671.97,1.868]
[1752124012455,2.2296191,672.52,671.97,1.868]
[1752124014955,2.2296191,672.51,671.97,1.868]
[1752124015659,0.25878127,672.8,671.97,1.868]
[1752124015660,2.2296191,672.62,671.97,1.868]
[1752124016158,2.2296191,672.72,671.97,1.868]
[1752124016355,2.2296191,672.68,671.97,1.868]
[1752124016564,2.2296191,672.67,671.97,1.868]
[1752124016761,2.2296191,672.64,671.97,1.868]
[1752124017660,2.2296191,672.67,671.97,1.868]
[1752124019164,2.2296191,672.66,671.97,1.868]
[1752124020465,2.2296191,672.64,671.97,1.868]
[1752124021161,2.2296191,672.62,671.97,1.868]
[1752124021367,2.2296191,672.58,671.97,1.868]
[1752124022365,2.2296191,672.59,671.97,1.868]
[1752124023465,2.2296191,672.55,671.97,1.868]
[1752124025468,2.2296191,672.55,671.82,1.6622735]
[1752124025766,2.2296191,672.53,671.83,1.6622735]
[1752124028969,2.2296191,672.54,671.83,1.6622735]
[1752124029470,2.2296191,672.55,671.84,1.723]
[1752124031374,2.2296191,672.54,671.84,1.723]
[1752124032168,2.2296191,672.52,671.84,3.3852735]
[1752124033272,2.2296191,672.51,671.85,1.6622735]
[1752124035673,3.3444286,672.65,671.85,1.6622735]
[1752124035674,2.2296191,672.5,671.85,1.6622735]
[1752124035973,2.2296191,672.51,671.85,1.6622735]
[1752124036169,2.2296191,672.5,671.86,1.6622735]
[1752124038076,2.2296191,672.54,671.84,1.723]
[1752124038374,0.25880726,672.68,671.84,1.723]
[1752124038375,2.48842636,672.68,671.84,1.723]
[1752124039375,0.25880726,672.68,671.84,1.723]
[1752124040175,2.48842636,672.68,671.84,1.723]
[1752124040476,0.25880726,672.68,671.84,1.723]
[1752124041273,2.48842636,672.68,671.84,1.723]
[1752124047984,2.2296191,672.67,671.84,1.723]
[1752124048289,2.2296191,672.59,671.89,1.66275045]
[1752124049388,2.2296191,672.56,671.91,1.66275045]
[1752124050793,2.2296191,672.57,671.91,1.66275045]
[1752124051593,0.25880726,672.68,671.84,1.723]
[1752124051594,2.2296191,672.55,671.93,1.66275045]
[1752124053595,2.2296191,672.52,671.95,1.66275045]
[1752124053798,2.2296191,672.51,671.96,1.66275045]
[1752124054090,2.2296191,672.5,671.96,1.66275045]
[1752124055292,2.2296191,672.51,671.96,1.66275045]
[1752124056797,2.2296191,672.5,671.96,1.66275045]
[1752124058300,2.2296191,672.5,671.97,1.66275045]
[1752124059000,2.2296191,672.5,671.96,1.66275045]
[1752124059697,2.2296191,672.52,671.95,1.66275045]
[1752124060601,2.2296191,672.51,671.95,1.66275045]
[1752124062201,2.2296191,672.52,671.95,1.66275045]
[1752124062402,2.2296191,672.52,671.94,1.66275045]
[1752124064999,2.2296191,672.53,671.94,1.66275045]
[1752124066305,2.2296191,672.57,671.91,1.66275045]
[1752124069707,2.2296191,672.56,671.91,1.66275045]
[1752124071803,2.2296191,672.57,671.91,1.66275045]
[1752124072306,2.2296191,672.56,671.91,1.66275045]
[1752124074904,2.2296191,672.56,671.92,1.66275045]
[1752124075708,2.2296191,672.57,671.91,1.66275045]
[1752124075905,2.2296191,672.62,671.87,1.66275045]
[1752124076106,2.2296191,672.61,671.88,1.66275045]
[1752124076305,0.25880726,672.68,671.88,1.66275045]
[1752124076306,2.2296191,672.6,671.88,1.66275045]
[1752124076508,2.2296191,672.61,671.88,1.66275045]
[1752124077313,2.2296191,672.6,671.88,1.66275045]
[1752124079814,2.2296191,672.6,671.77,0.25881784]
[1752124080517,0.25880726,672.68,671.77,0.25881784]
[1752124081116,0.25880726,672.68,671.85,2.2159495]
[1752124081312,2.2275891,672.49,671.85,2.2159495]
[1752124081713,2.2275891,672.49,671.86,1.355]
[1752124082014,2.2275891,672.49,671.96,1.6619621]
[1752124082417,2.2275891,672.49,671.86,1.355]
[1752124082614,3.3413837,672.61,671.86,1.355]
[1752124083217,0.25880918,672.76,671.86,1.355]
[1752124083517,2.2277142,672.49,671.96,1.6620555]
[1752124084420,2.2277142,672.5,671.95,1.6620555]
[1752124085218,2.2277142,672.51,671.95,1.6620555]
[1752124086018,2.2277142,672.65,671.86,1.355]
[1752124088916,2.2277142,672.66,671.86,1.355]
[1752124091528,2.2277142,672.65,671.86,1.355]
[1752124094526,2.2277142,672.64,671.86,1.355]
[1752124095826,2.2277142,672.57,671.9,1.6620555]
[1752124097428,2.2277142,672.56,671.91,1.6620555]
[1752124097624,2.2277142,672.56,671.92,1.6620555]
[1752124098529,2.2277142,672.53,671.93,1.6620555]
[1752124098730,2.2277142,672.52,671.94,1.6620555]
[1752124099934,2.2277142,672.48,671.97,1.6620555]
[1752124100134,2.2277142,672.47,671.98,1.6620555]
[1752124101836,2.2277142,672.48,671.98,1.6620555]
[1752124102237,2.2277142,672.47,671.98,1.6620555]
[1752124103940,2.2277142,672.47,671.99,1.6620555]
[1752124105239,2.2277142,672.47,671.98,1.6620555]
[1752124106346,2.2277142,672.47,671.99,1.6620555]
[1752124106746,2.2277142,672.46,671.99,1.6620555]
[1752124107653,2.2277142,672.46,672.0,1.828]
[1752124111643,2.2277142,672.45,672.0,3.4900555]
[1752124112850,2.2277142,672.44,672.0,3.4900555]
[1752124114651,2.2277142,672.45,672.0,3.4900555]
[1752124115151,2.2277142,672.46,672.0,1.828]
[1752124115551,2.2277142,672.47,672.0,1.828]
[1752124120155,2.2277142,672.48,672.0,1.828]
[1752124120656,2.2277142,672.53,672.0,1.828]
[1752124122654,2.2277142,672.54,672.0,1.828]
[1752124126362,2.2277142,672.62,672.0,1.828]
[1752124126563,2.2277142,672.63,672.0,1.828]
[1752124126864,2.2277142,672.64,672.0,1.828]
[1752124127262,2.2277142,672.67,672.0,1.828]
[1752124127462,2.2277142,672.73,672.0,1.828]
[1752124128359,2.2277142,672.75,672.0,1.828]
[1752124128861,2.2277142,672.76,672.0,1.828]
[1752124130263,0.2587678,672.89,672.0,1.828]
[1752124130264,2.2277142,672.77,672.0,1.828]
[1752124131465,2.2277142,672.78,672.0,1.828]
[1752124132062,2.2277142,672.77,672.0,1.828]
[1752124132264,2.2277142,672.78,672.0,1.828]
[1752124134068,2.2277142,672.75,672.0,1.828]
[1752124134367,2.2277142,672.76,672.0,1.828]
[1752124135568,2.2277142,672.76,671.93,1.6620555]
[1752124136369,2.2277142,672.67,672.01,1.6620555]
[1752124136864,2.2277142,672.66,672.01,1.6620555]
[1752124137064,2.2277142,672.67,672.0,1.6620555]
[1752124137467,2.2277142,672.69,671.99,1.6620555]
[1752124138466,2.2277142,672.69,672.0,1.414]
[1752124138864,2.2277142,672.68,672.0,3.0760555]
[1752124139367,2.2277142,672.68,672.0,1.414]
[1752124140469,2.2277142,672.67,672.0,3.0760555]
[1752124141469,2.2277142,672.69,672.0,1.414]
[1752124142369,2.2277142,672.7,672.0,1.414]
[1752124142869,2.2277142,672.72,672.0,1.414]
[1752124147270,2.2277142,672.71,672.0,1.414]
[1752124149371,2.2277142,672.76,672.0,1.414]
[1752124151467,2.2277142,672.75,672.0,1.414]
[1752124152573,2.2277142,672.75,671.94,1.6620555]
[1752124152774,2.2277142,672.74,671.94,1.6620555]
[1752124152972,2.2277142,672.75,671.94,1.6620555]
[1752124155374,2.2277142,672.75,671.95,1.777]
[1752124156972,2.2277142,672.78,671.95,1.777]
[1752124158176,2.2277142,672.77,671.95,1.777]
[1752124159179,2.2277142,672.74,671.95,1.777]
[1752124161886,2.2277142,672.73,671.95,3.4390555]
[1752124162179,2.2277142,672.8,671.95,1.777]
[1752124166878,2.2277142,672.78,671.95,1.777]
[1752124168783,2.2277142,672.8,671.95,1.777]
[1752124169783,2.2277142,672.82,671.95,1.777]
[1752124170784,2.2277142,672.84,671.95,1.777]
[1752124172184,2.2277142,672.8,671.95,1.777]
[1752124172982,2.2277142,672.81,671.95,1.777]
[1752124173386,2.2277142,672.8,671.95,1.777]
[1752124173681,2.2277142,672.8,671.95,3.4390555]
[1752124173984,2.2277142,672.8,671.95,1.777]
[1752124174382,2.2277142,672.8,671.95,3.4390555]
[1752124176485,2.2277142,672.79,671.95,3.4390555]
[1752124178187,2.2277142,672.79,671.96,1.6620555]
[1752124178690,2.2277142,672.8,671.96,1.6620555]
[1752124179288,2.2277142,672.8,671.97,1.6620555]
[1752124179786,2.2277142,672.78,671.98,1.6620555]
[1752124180694,2.2277142,672.76,672.0,1.6620555]
[1752124181288,2.2277142,672.75,672.0,1.6620555]
[1752124182293,2.2277142,672.75,671.95,1.777]
[1752124182294,2.2277142,672.75,672.01,1.6620555]
[1752124183393,2.2277142,672.74,672.01,1.6620555]
[1752124184389,2.2277142,672.74,672.02,1.6620555]
[1752124184993,2.2277142,672.76,672.0,1.6620555]
[1752124185395,2.2277142,672.75,672.01,1.6620555]
[1752124186394,2.2277142,672.72,672.03,1.6620555]
[1752124187297,2.2277142,672.71,672.04,1.6620555]
[1752124187501,2.2277142,672.72,672.04,1.6620555]
[1752124188301,2.2277142,672.71,672.04,1.6620555]
[1752124188504,2.2277142,672.71,672.05,1.6620555]
[1752124190200,2.2277142,672.7,672.05,1.6620555]
[1752124190603,2.2277142,672.73,672.03,1.6620555]
[1752124192206,2.2277142,672.74,672.04,1.6620555]
[1752124192802,2.2277142,672.73,672.04,1.6620555]
[1752124194906,2.2277142,672.71,672.06,1.6620555]
[1752124199211,2.2277142,672.7,672.06,1.6620555]
[1752124199507,2.2277142,672.71,672.06,1.6620555]
[1752124200112,2.2277142,672.71,671.95,1.777]
[1752124200113,2.2277142,672.73,672.05,1.6620555]
[1752124200308,2.2277142,672.74,672.07,1.6620555]
[1752124200609,2.2277142,672.71,672.09,1.6620555]
[1752124203416,2.2277142,672.7,672.1,1.6620555]
[1752124203714,2.2277142,672.71,672.1,1.6620555]
[1752124204217,2.2277142,672.7,672.1,1.6620555]
[1752124204420,2.2277142,672.71,672.1,1.6620555]
[1752124204618,2.2277142,672.7,672.1,1.6620555]
[1752124205418,2.2277142,672.71,672.1,1.6620555]
[1752124207124,2.2277142,672.72,672.09,1.6620555]
[1752124210020,2.2277142,672.7,672.1,1.6620555]
[1752124210527,2.2277142,672.69,672.11,1.6620555]
[1752124217127,2.2277142,672.68,672.12,1.6620555]
[1752124217328,2.2277142,672.68,672.12,3.0100555]
[1752124218427,2.2277142,672.66,672.14,1.6620555]
[1752124220429,2.2277142,672.65,672.14,1.6620555]
[1752124220926,2.2277142,672.65,672.15,1.6620555]
[1752124222025,2.2277142,672.65,672.14,1.6620555]
[1752124222527,2.2277142,672.65,672.15,1.6620555]
[1752124223124,2.2277142,672.65,672.12,1.348]
[1752124223125,2.2277142,672.66,672.14,1.6620555]
[1752124223325,2.2277142,672.65,672.14,1.6620555]
[1752124223830,2.2277142,672.65,672.15,1.6620555]
[1752124224327,2.2277142,672.67,672.13,1.6620555]
[1752124225126,3.3415713,672.79,672.12,1.348]
[1752124225327,0.2587678,672.89,672.12,1.348]
[1752124226128,2.2278642,672.74,672.12,1.348]
[1752124227832,2.2278642,672.75,672.12,1.348]
[1752124228735,0.2587678,672.89,672.12,1.348]
[1752124238337,0.2587678,672.89,671.89,1.6658025]
[1752124238738,2.486632,672.89,671.97,1.6658025]
[1752124239434,2.486632,672.89,671.98,1.6658025]
[1752124239838,2.2278642,672.84,672.02,1.6658025]
[1752124240434,2.2278642,672.83,672.02,1.6658025]
[1752124240936,2.2278642,672.84,672.02,1.6658025]
[1752124241439,2.2278642,672.83,672.03,1.476]
[1752124242942,2.2278642,672.82,672.03,3.1418025]
[1752124244344,2.2278642,672.85,672.03,1.476]
[1752124244638,2.2278642,672.87,672.03,1.476]
[1752124245941,2.2278642,672.79,672.06,1.6658025]
[1752124247345,2.2278642,672.78,672.06,1.6658025]
[1752124249148,2.2278642,672.77,672.07,1.6658025]
[1752124250748,2.2278642,672.75,672.09,1.6658025]
[1752124254254,2.2278642,672.73,672.11,1.6658025]
[1752124254454,2.2278642,672.75,672.09,1.6658025]
[1752124254654,2.2278642,672.74,672.1,1.6658025]
[1752124255761,2.2278642,672.72,672.11,1.6658025]
[1752124256359,2.2278642,672.73,672.11,1.6658025]
[1752124259157,2.2278642,672.72,672.11,1.6658025]
[1752124261463,2.2278642,672.71,672.12,1.6658025]
[1752124264264,2.2278642,672.68,672.15,1.6658025]
[1752124265268,2.2278642,672.68,672.03,1.476]
[1752124265469,2.2278642,672.68,672.15,1.6669753]
[1752124266368,2.2278642,672.67,672.15,1.6669753]
[1752124272573,2.2278642,672.68,672.15,1.6669753]
[1752124272773,2.2278642,672.65,672.17,1.6669753]
[1752124276174,2.2278642,672.64,672.18,1.6669753]
[1752124281978,2.2278642,672.66,672.16,1.6669753]
[1752124282273,2.2278642,672.67,672.16,1.6669753]
[1752124282481,2.2278642,672.66,672.16,1.6669753]
[1752124283079,2.2278642,672.68,672.14,1.6669753]
[1752124283481,2.2278642,672.69,672.14,1.6669753]
[1752124285078,2.2278642,672.87,672.03,1.476]
[1752124287384,2.2278642,672.87,672.0,1.6669753]
[1752124291191,2.2278642,672.87,672.01,1.845]
[1752124291492,2.2278642,672.85,672.01,1.845]
[1752124294992,2.2278642,672.7,672.1,1.6669753]
[1752124296696,2.2278642,672.71,672.09,1.6669753]
[1752124306705,2.2278642,672.7,672.1,1.6669753]
[1752124309105,2.2278642,672.69,672.11,1.6669753]
[1752124310410,0.2587678,672.89,672.04,1.6669753]
[1752124310411,2.2278642,672.78,672.04,1.6669753]
[1752124315111,2.2278642,672.72,672.09,1.6669753]
[1752124318117,2.2278642,672.72,672.08,1.6669753]
[1752124319816,1.6716623,672.55,672.06,1.6669753]